[Event "*** Titled Tuesday 3|2 Blitz"]
[Site "Chess.com"]
[Date "2017.03.07"]
[Round "10"]
[White "TheNextLevelFan"]
[Black "rpragchess"]
[Result "1-0"]
[WhiteElo "2399"]
[BlackElo "2122"]
[TimeControl "180+2"]
[EndTime "15:17:25 PST"]
[Termination "TheNextLevelFan won by resignation"]

1. d4 {[%clk 0:03:02]} 1... Nf6 {[%clk 0:02:59.6]} 2. c4 {[%clk 0:03:02.9]} 2...
e6 {[%clk 0:02:54]} 3. Nf3 {[%clk 0:03:03.7]} 3... d5 {[%clk 0:02:54.3]} 4. Nc3
{[%clk 0:03:04.2]} 4... Be7 {[%clk 0:02:52.9]} 5. Bf4 {[%clk 0:03:04.7]} 5...
O-O {[%clk 0:02:52.7]} 6. e3 {[%clk 0:03:06.2]} 6... Nbd7 {[%clk 0:02:54]} 7.
Rc1 {[%clk 0:03:05.8]} 7... c5 {[%clk 0:02:51.9]} 8. cxd5 {[%clk 0:03:04.5]}
8... exd5 {[%clk 0:02:52.4]} 9. Bd3 {[%clk 0:03:01.9]} 9... b6 {[%clk 0:02:52]}
10. O-O {[%clk 0:03:02.5]} 10... Bb7 {[%clk 0:02:53.6]} 11. Re1 {[%clk
0:03:01.8]} 11... Ne4 {[%clk 0:02:53.9]} 12. h3 {[%clk 0:02:54.7]} 12... Ndf6
{[%clk 0:02:55.2]} 13. Ne2 {[%clk 0:02:42]} 13... c4 {[%clk 0:02:53.2]} 14. Bb1
{[%clk 0:02:40]} 14... b5 {[%clk 0:02:53.7]} 15. Ne5 {[%clk 0:02:38.2]} 15... a5
{[%clk 0:02:53.3]} 16. f3 {[%clk 0:02:38.5]} 16... Nd6 {[%clk 0:02:53.4]} 17.
Nc3 {[%clk 0:02:35.3]} 17... b4 {[%clk 0:02:53.8]} 18. Na4 {[%clk 0:02:36]}
18... Nd7 {[%clk 0:02:53.3]} 19. Nxd7 {[%clk 0:02:35.5]} 19... Qxd7 {[%clk
0:02:54.7]} 20. Nb6 {[%clk 0:02:36.7]} 20... Qb5 {[%clk 0:02:54]} 21. Nxa8
{[%clk 0:02:37.9]} 21... Bxa8 {[%clk 0:02:54.7]} 22. e4 {[%clk 0:02:38.8]} 22...
dxe4 {[%clk 0:02:54.7]} 23. fxe4 {[%clk 0:02:38.7]} 23... f5 {[%clk 0:02:55.4]}
24. exf5 {[%clk 0:02:29.1]} 24... Qd5 {[%clk 0:02:49.2]} 25. Qg4 {[%clk
0:02:29]} 25... Qxd4+ {[%clk 0:02:46.3]} 26. Be3 {[%clk 0:02:16.2]} 26... Qxb2
{[%clk 0:02:40.6]} 27. Bd4 {[%clk 0:02:16.5]} 27... Qxg2+ {[%clk 0:02:33.7]} 28.
Qxg2 {[%clk 0:02:17.1]} 28... Bxg2 {[%clk 0:02:34.2]} 29. Rxe7 {[%clk
0:02:16.3]} 1-0

[Event "*** Titled Tuesday 3|2 Blitz"]
[Site "Chess.com"]
[Date "2017.03.07"]
[Round "10"]
[White "wnstop"]
[Black "GMCanty"]
[Result "1-0"]
[WhiteElo "2472"]
[BlackElo "2343"]
[TimeControl "180+2"]
[EndTime "15:17:40 PST"]
[Termination "wnstop won by checkmate"]

1. e4 {[%clk 0:03:02]} 1... c5 {[%clk 0:03:00.1]} 2. Nf3 {[%clk 0:03:02.9]} 2...
g6 {[%clk 0:03:01.7]} 3. d4 {[%clk 0:03:03.9]} 3... cxd4 {[%clk 0:03:03.6]} 4.
Nxd4 {[%clk 0:03:05.8]} 4... Nc6 {[%clk 0:03:05]} 5. Nc3 {[%clk 0:03:06.8]} 5...
Bg7 {[%clk 0:03:06.4]} 6. Be3 {[%clk 0:03:08.2]} 6... Nf6 {[%clk 0:03:07.5]} 7.
Bc4 {[%clk 0:03:09.7]} 7... O-O {[%clk 0:03:08.9]} 8. Bb3 {[%clk 0:03:11.1]}
8... a5 {[%clk 0:03:09.6]} 9. O-O {[%clk 0:03:11.3]} 9... d6 {[%clk 0:03:10.4]}
10. f3 {[%clk 0:03:03.7]} 10... Nxd4 {[%clk 0:03:10.9]} 11. Bxd4 {[%clk
0:03:04.2]} 11... Bd7 {[%clk 0:03:12.8]} 12. a4 {[%clk 0:03:03.9]} 12... Bc6
{[%clk 0:03:14.1]} 13. Kh1 {[%clk 0:03:03.4]} 13... Nd7 {[%clk 0:03:14.5]} 14.
Bxg7 {[%clk 0:02:58.6]} 14... Kxg7 {[%clk 0:03:16.4]} 15. Qd4+ {[%clk
0:03:00.1]} 15... Kg8 {[%clk 0:03:18]} 16. Nd5 {[%clk 0:03:01]} 16... Nc5 {[%clk
0:03:16.1]} 17. Ne3 {[%clk 0:02:44.3]} 17... Qb6 {[%clk 0:02:30.7]} 18. Ng4
{[%clk 0:02:29.5]} 18... e5 {[%clk 0:02:01.7]} 19. Qxd6 {[%clk 0:02:29.3]} 19...
Nxb3 {[%clk 0:01:55.6]} 20. Qxe5 {[%clk 0:02:16.5]} 20... Qd4 {[%clk 0:01:38.7]}
21. Nh6# {[%clk 0:02:16.3]} 1-0

[Event "*** Titled Tuesday 3|2 Blitz"]
[Site "Chess.com"]
[Date "2017.03.07"]
[Round "10"]
[White "AlexZambrano"]
[Black "quesfr"]
[Result "1-0"]
[WhiteElo "2287"]
[BlackElo "2159"]
[TimeControl "180+2"]
[EndTime "15:18:12 PST"]
[Termination "AlexZambrano won by resignation"]

1. e4 {[%clk 0:02:56]} 1... e6 {[%clk 0:03:00.9]} 2. d4 {[%clk 0:02:55.9]} 2...
d5 {[%clk 0:03:01.8]} 3. Nc3 {[%clk 0:02:57.2]} 3... Nf6 {[%clk 0:03:02.9]} 4.
Bg5 {[%clk 0:02:57.5]} 4... dxe4 {[%clk 0:03:02.7]} 5. Nxe4 {[%clk 0:02:57.6]}
5... Nbd7 {[%clk 0:02:55.9]} 6. Nf3 {[%clk 0:02:57.7]} 6... Be7 {[%clk
0:02:54.2]} 7. Nxf6+ {[%clk 0:02:58.7]} 7... Bxf6 {[%clk 0:02:55.3]} 8. h4
{[%clk 0:02:59.4]} 8... h6 {[%clk 0:02:55.6]} 9. Be3 {[%clk 0:03:00.4]} 9... c5
{[%clk 0:02:54.5]} 10. Qd2 {[%clk 0:03:01.5]} 10... Qb6 {[%clk 0:02:51.8]} 11.
O-O-O {[%clk 0:03:01.7]} 11... O-O {[%clk 0:02:40.6]} 12. c3 {[%clk 0:03:02.4]}
12... e5 {[%clk 0:01:51.4]} 13. dxc5 {[%clk 0:02:44.3]} 13... Qc7 {[%clk
0:01:50.1]} 14. Qd6 {[%clk 0:02:43.5]} 14... Qa5 {[%clk 0:01:47.5]} 15. Bc4
{[%clk 0:02:41.3]} 15... Rd8 {[%clk 0:01:36.4]} 16. Qd5 {[%clk 0:02:25.7]} 16...
Rf8 {[%clk 0:01:24.9]} 17. Ng5 {[%clk 0:02:24.3]} 17... hxg5 {[%clk 0:01:03.6]}
18. hxg5 {[%clk 0:02:26.2]} 18... Nb6 {[%clk 0:01:03.9]} 19. cxb6 {[%clk
0:02:24]} 19... Qxd5 {[%clk 0:01:04.6]} 20. Bxd5 {[%clk 0:02:25]} 20... Be7
{[%clk 0:01:05]} 21. bxa7 {[%clk 0:02:25.5]} 1-0

[Event "*** Titled Tuesday 3|2 Blitz"]
[Site "Chess.com"]
[Date "2017.03.07"]
[Round "10"]
[White "AlexanderL"]
[Black "CM_Perligero"]
[Result "1-0"]
[WhiteElo "2544"]
[BlackElo "2146"]
[TimeControl "180+2"]
[EndTime "15:18:55 PST"]
[Termination "AlexanderL won by checkmate"]

1. b4 {[%clk 0:03:02]} 1... d5 {[%clk 0:02:56.8]} 2. Bb2 {[%clk 0:03:02.7]} 2...
e6 {[%clk 0:02:57.9]} 3. Nf3 {[%clk 0:02:57]} 3... Nf6 {[%clk 0:02:57.6]} 4. a3
{[%clk 0:02:58.2]} 4... c6 {[%clk 0:02:58]} 5. e3 {[%clk 0:02:56.9]} 5... Nbd7
{[%clk 0:02:57.2]} 6. c4 {[%clk 0:02:55.8]} 6... a5 {[%clk 0:02:57.5]} 7. b5
{[%clk 0:02:56.7]} 7... cxb5 {[%clk 0:02:26]} 8. cxd5 {[%clk 0:02:57.7]} 8...
Nxd5 {[%clk 0:02:24.3]} 9. Bxb5 {[%clk 0:02:58.5]} 9... Qb6 {[%clk 0:02:23.5]}
10. a4 {[%clk 0:02:58.9]} 10... Be7 {[%clk 0:02:04.4]} 11. Bxg7 {[%clk
0:02:53.8]} 11... Rg8 {[%clk 0:01:59.9]} 12. Bd4 {[%clk 0:02:55.3]} 12... Bc5
{[%clk 0:01:59.8]} 13. O-O {[%clk 0:02:55.6]} 13... Bxd4 {[%clk 0:01:57.4]} 14.
Nxd4 {[%clk 0:02:56.5]} 14... Qd6 {[%clk 0:01:51.5]} 15. Nc3 {[%clk 0:02:56.4]}
15... Nc7 {[%clk 0:01:40]} 16. Rc1 {[%clk 0:02:54]} 16... Ke7 {[%clk 0:01:24.9]}
17. Ne4 {[%clk 0:02:53.6]} 17... Qe5 {[%clk 0:01:19.7]} 18. Ng3 {[%clk
0:02:50.6]} 18... Nd5 {[%clk 0:01:12.5]} 19. Nf3 {[%clk 0:02:51.7]} 19... Qg7
{[%clk 0:01:11.4]} 20. d4 {[%clk 0:02:53.1]} 20... h5 {[%clk 0:01:03.7]} 21. h4
{[%clk 0:02:54.6]} 21... Qg4 {[%clk 0:00:57.8]} 22. Qe2 {[%clk 0:02:38.9]} 22...
N7f6 {[%clk 0:00:40.4]} 23. Qc2 {[%clk 0:02:28.4]} 23... Nxe3 {[%clk 0:00:37.7]}
24. Qc5+ {[%clk 0:02:28.7]} 24... Kd8 {[%clk 0:00:34.2]} 25. Qc7# {[%clk
0:02:29.8]} 1-0

[Event "*** Titled Tuesday 3|2 Blitz"]
[Site "Chess.com"]
[Date "2017.03.07"]
[Round "10"]
[White "Yaacovn"]
[Black "GianmarcoVaR"]
[Result "1-0"]
[WhiteElo "2608"]
[BlackElo "2440"]
[TimeControl "180+2"]
[EndTime "15:19:23 PST"]
[Termination "Yaacovn won by checkmate"]

1. d4 {[%clk 0:03:01.9]} 1... Nf6 {[%clk 0:03:00.8]} 2. Nf3 {[%clk 0:03:03.2]}
2... e6 {[%clk 0:03:01.6]} 3. c4 {[%clk 0:03:04.3]} 3... b6 {[%clk 0:03:00.5]}
4. g3 {[%clk 0:03:05.3]} 4... Bb7 {[%clk 0:03:01.9]} 5. Bg2 {[%clk 0:03:05.7]}
5... Bb4+ {[%clk 0:03:03.5]} 6. Bd2 {[%clk 0:03:06.6]} 6... c5 {[%clk 0:03:05]}
7. O-O {[%clk 0:03:07.3]} 7... O-O {[%clk 0:03:01.5]} 8. Nc3 {[%clk 0:03:06.8]}
8... cxd4 {[%clk 0:02:59.4]} 9. Nxd4 {[%clk 0:03:07.1]} 9... Bxg2 {[%clk
0:03:00.1]} 10. Kxg2 {[%clk 0:03:09]} 10... Qc7 {[%clk 0:02:58.2]} 11. b3 {[%clk
0:03:09.5]} 11... d5 {[%clk 0:02:54.7]} 12. Ncb5 {[%clk 0:03:03.7]} 12... Qb7
{[%clk 0:02:54.2]} 13. Bxb4 {[%clk 0:03:03.7]} 13... dxc4+ {[%clk 0:02:51.8]}
14. Kg1 {[%clk 0:03:04.2]} 14... Rd8 {[%clk 0:02:27.5]} 15. e3 {[%clk 0:03:02]}
15... Na6 {[%clk 0:01:43.1]} 16. Ba3 {[%clk 0:02:54.3]} 16... e5 {[%clk
0:01:36.1]} 17. Qf3 {[%clk 0:02:55]} 17... Qd7 {[%clk 0:01:37.1]} 18. Nc6 {[%clk
0:02:43.5]} 18... e4 {[%clk 0:01:37.9]} 19. Ne7+ {[%clk 0:02:38.4]} 19... Kh8
{[%clk 0:00:46.8]} 20. Qf5 {[%clk 0:02:38.1]} 20... Qe8 {[%clk 0:00:48]} 21.
bxc4 {[%clk 0:02:34]} 21... Rd7 {[%clk 0:00:47.8]} 22. Nc6 {[%clk 0:02:25.6]}
22... Rd3 {[%clk 0:00:43.5]} 23. Ne5 {[%clk 0:02:24.3]} 23... Rd2 {[%clk
0:00:31.4]} 24. Nd6 {[%clk 0:02:24.5]} 24... Qa4 {[%clk 0:00:16]} 25. Nexf7+
{[%clk 0:02:20.2]} 25... Kg8 {[%clk 0:00:17.4]} 26. Qe6 {[%clk 0:02:21.3]} 26...
Nc7 {[%clk 0:00:14.2]} 27. Nh6+ {[%clk 0:02:21.6]} 27... Kf8 {[%clk 0:00:15.4]}
28. Qf7# {[%clk 0:02:22.3]} 1-0

[Event "*** Titled Tuesday 3|2 Blitz"]
[Site "Chess.com"]
[Date "2017.03.07"]
[Round "10"]
[White "JeremDev"]
[Black "plouarzel"]
[Result "1-0"]
[WhiteElo "2234"]
[BlackElo "2328"]
[TimeControl "180+2"]
[EndTime "15:19:48 PST"]
[Termination "JeremDev won by resignation"]

1. e4 {[%clk 0:03:01.9]} 1... e5 {[%clk 0:03:00.9]} 2. Nf3 {[%clk 0:03:01.8]}
2... Nc6 {[%clk 0:03:02.2]} 3. Bc4 {[%clk 0:03:02.3]} 3... Bc5 {[%clk
0:03:02.6]} 4. O-O {[%clk 0:03:02.5]} 4... Nf6 {[%clk 0:03:03.1]} 5. d4 {[%clk
0:03:03.6]} 5... exd4 {[%clk 0:03:02.5]} 6. e5 {[%clk 0:03:04.3]} 6... d5 {[%clk
0:03:03.9]} 7. exf6 {[%clk 0:03:05.2]} 7... dxc4 {[%clk 0:03:04.6]} 8. fxg7
{[%clk 0:03:06.7]} 8... Rg8 {[%clk 0:03:05.8]} 9. Re1+ {[%clk 0:03:08.3]} 9...
Be6 {[%clk 0:03:02]} 10. Bg5 {[%clk 0:03:09.7]} 10... Be7 {[%clk 0:02:30.5]} 11.
Bxe7 {[%clk 0:03:10.2]} 11... Kxe7 {[%clk 0:02:32.4]} 12. Nbd2 {[%clk
0:03:11.1]} 12... Qd5 {[%clk 0:02:24.3]} 13. c3 {[%clk 0:03:11.7]} 13... d3
{[%clk 0:02:06.1]} 14. b3 {[%clk 0:03:12]} 14... b5 {[%clk 0:01:58.3]} 15. a4
{[%clk 0:03:12.4]} 15... a6 {[%clk 0:01:55.5]} 16. axb5 {[%clk 0:03:01.5]} 16...
axb5 {[%clk 0:01:56.4]} 17. Rxa8 {[%clk 0:03:02.4]} 17... Rxa8 {[%clk
0:01:58.3]} 18. bxc4 {[%clk 0:03:03.7]} 18... bxc4 {[%clk 0:01:55.7]} 19. Qb1
{[%clk 0:02:56.5]} 19... Kf6 {[%clk 0:01:31.4]} 20. Qb7 {[%clk 0:02:46.9]} 20...
Ne7 {[%clk 0:01:11.9]} 21. Qxc7 {[%clk 0:02:26.4]} 21... Ng6 {[%clk 0:01:13.2]}
22. Nd4 {[%clk 0:02:13.3]} 22... Nf4 {[%clk 0:00:55.9]} 23. Qxf4+ {[%clk
0:02:13]} 23... Kxg7 {[%clk 0:00:55.7]} 24. h3 {[%clk 0:02:01.3]} 24... Rg8
{[%clk 0:00:30.6]} 25. Re5 {[%clk 0:01:57.5]} 25... Qb7 {[%clk 0:00:28]} 26.
Rg5+ {[%clk 0:01:53.9]} 26... Kf8 {[%clk 0:00:18.5]} 27. Nxe6+ {[%clk
0:01:53.9]} 1-0

[Event "*** Titled Tuesday 3|2 Blitz"]
[Site "Chess.com"]
[Date "2017.03.07"]
[Round "10"]
[White "Ginger_GM"]
[Black "RoelandPruijssers"]
[Result "1-0"]
[WhiteElo "2512"]
[BlackElo "2504"]
[TimeControl "180+2"]
[EndTime "15:19:52 PST"]
[Termination "Ginger_GM won by resignation"]

1. d4 {[%clk 0:03:02]} 1... f5 {[%clk 0:02:59.8]} 2. h3 {[%clk 0:02:55.4]} 2...
e6 {[%clk 0:02:39.7]} 3. g4 {[%clk 0:02:55]} 3... d5 {[%clk 0:02:39.2]} 4. c4
{[%clk 0:02:53.8]} 4... c5 {[%clk 0:02:20.5]} 5. gxf5 {[%clk 0:02:45]} 5... dxc4
{[%clk 0:02:04.9]} 6. e4 {[%clk 0:02:37.7]} 6... Qxd4 {[%clk 0:01:58.4]} 7. Nd2
{[%clk 0:02:15]} 7... Nf6 {[%clk 0:01:33.3]} 8. Ngf3 {[%clk 0:02:15]} 8... Qd8
{[%clk 0:01:33.1]} 9. e5 {[%clk 0:02:07.5]} 9... Nd5 {[%clk 0:01:33.6]} 10. Bxc4
{[%clk 0:01:58.6]} 10... Nc6 {[%clk 0:01:24.8]} 11. Rg1 {[%clk 0:01:47.4]} 11...
exf5 {[%clk 0:00:56.7]} 12. Nb3 {[%clk 0:01:37.9]} 12... Ndb4 {[%clk 0:00:39.9]}
13. Qe2 {[%clk 0:01:32.7]} 13... Be7 {[%clk 0:00:21.7]} 14. Rxg7 {[%clk
0:01:31.5]} 14... Qc7 {[%clk 0:00:18.4]} 15. Bg5 {[%clk 0:01:28]} 15... b5
{[%clk 0:00:13.8]} 16. Bxb5 {[%clk 0:01:25.1]} 16... Kf8 {[%clk 0:00:13.5]} 17.
Bh6 {[%clk 0:01:25.2]} 1-0

[Event "*** Titled Tuesday 3|2 Blitz"]
[Site "Chess.com"]
[Date "2017.03.07"]
[Round "10"]
[White "escher"]
[Black "Vegan4future"]
[Result "0-1"]
[WhiteElo "2008"]
[BlackElo "2249"]
[TimeControl "180+2"]
[EndTime "15:19:59 PST"]
[Termination "Vegan4future won by resignation"]

1. e4 {[%clk 0:03:02]} 1... e5 {[%clk 0:01:34.9]} 2. Nf3 {[%clk 0:02:52.7]} 2...
d6 {[%clk 0:01:36.1]} 3. d4 {[%clk 0:02:50.9]} 3... exd4 {[%clk 0:01:38]} 4.
Nxd4 {[%clk 0:02:50.9]} 4... Nf6 {[%clk 0:01:39.6]} 5. Nc3 {[%clk 0:02:48.8]}
5... Be7 {[%clk 0:01:41.2]} 6. Bc4 {[%clk 0:02:48.5]} 6... O-O {[%clk
0:01:42.4]} 7. O-O {[%clk 0:02:45.2]} 7... Re8 {[%clk 0:01:43.8]} 8. Bb3 {[%clk
0:02:30.5]} 8... Nbd7 {[%clk 0:01:36.4]} 9. f4 {[%clk 0:02:28.2]} 9... Bf8
{[%clk 0:01:35.5]} 10. Qf3 {[%clk 0:02:03.7]} 10... Nc5 {[%clk 0:01:13.2]} 11.
Re1 {[%clk 0:01:35.9]} 11... Nxb3 {[%clk 0:01:12.2]} 12. axb3 {[%clk 0:01:35]}
12... c5 {[%clk 0:01:00.8]} 13. Ndb5 {[%clk 0:01:28]} 13... Bd7 {[%clk
0:00:49.8]} 14. Na3 {[%clk 0:01:18.4]} 14... a6 {[%clk 0:00:47.1]} 15. Nc4
{[%clk 0:01:11.8]} 15... b5 {[%clk 0:00:45.4]} 16. Ne3 {[%clk 0:01:07.9]} 16...
Bc6 {[%clk 0:00:34.1]} 17. Ned5 {[%clk 0:00:50.6]} 17... Nxd5 {[%clk 0:00:35]}
0-1

[Event "*** Titled Tuesday 3|2 Blitz"]
[Site "Chess.com"]
[Date "2017.03.07"]
[Round "10"]
[White "Abrito99"]
[Black "PelinGorki"]
[Result "0-1"]
[WhiteElo "2399"]
[BlackElo "2431"]
[TimeControl "180+2"]
[EndTime "15:20:15 PST"]
[Termination "PelinGorki won by resignation"]

1. e4 {[%clk 0:03:01.3]} 1... d6 {[%clk 0:03:01.1]} 2. d4 {[%clk 0:02:53.3]}
2... Nf6 {[%clk 0:03:02.3]} 3. Nc3 {[%clk 0:02:53.7]} 3... c6 {[%clk 0:03:03.7]}
4. a4 {[%clk 0:02:52.9]} 4... a5 {[%clk 0:03:04.3]} 5. Nf3 {[%clk 0:02:52.4]}
5... Bg4 {[%clk 0:03:05]} 6. h3 {[%clk 0:02:52.2]} 6... Bxf3 {[%clk 0:03:05.7]}
7. Qxf3 {[%clk 0:02:53.8]} 7... e6 {[%clk 0:03:07.6]} 8. Bg5 {[%clk 0:02:23.1]}
8... Be7 {[%clk 0:02:53.7]} 9. Bd3 {[%clk 0:02:19.4]} 9... d5 {[%clk 0:02:54.5]}
10. exd5 {[%clk 0:02:03.6]} 10... cxd5 {[%clk 0:02:56.4]} 11. O-O {[%clk
0:02:01.6]} 11... Nc6 {[%clk 0:02:55.6]} 12. Nb5 {[%clk 0:01:57.7]} 12... O-O
{[%clk 0:02:55.7]} 13. Rfe1 {[%clk 0:01:56]} 13... h6 {[%clk 0:02:56.6]} 14. Bh4
{[%clk 0:01:55.4]} 14... Nb4 {[%clk 0:02:55.6]} 15. Rad1 {[%clk 0:01:29.9]}
15... Rc8 {[%clk 0:02:52.4]} 16. c3 {[%clk 0:01:28.6]} 16... Nxd3 {[%clk
0:02:52.2]} 17. Rxd3 {[%clk 0:01:29.3]} 17... Ne4 {[%clk 0:02:51.4]} 18. Bxe7
{[%clk 0:01:27.4]} 18... Qxe7 {[%clk 0:02:53.3]} 19. Qd1 {[%clk 0:01:28.7]}
19... Qh4 {[%clk 0:02:45.8]} 20. Qc2 {[%clk 0:01:13.3]} 20... f5 {[%clk
0:02:35.8]} 21. Re2 {[%clk 0:01:09]} 21... f4 {[%clk 0:02:31.2]} 22. f3 {[%clk
0:01:09.6]} 22... Ng5 {[%clk 0:02:31.8]} 23. Re5 {[%clk 0:01:02.3]} 23... Rf6
{[%clk 0:02:25.4]} 24. Qf2 {[%clk 0:01:00.8]} 24... Qh5 {[%clk 0:02:17.8]} 25.
h4 {[%clk 0:00:57.8]} 25... Nh3+ {[%clk 0:02:13.4]} 26. gxh3 {[%clk 0:00:56.1]}
26... Qg6+ {[%clk 0:02:15]} 27. Kh2 {[%clk 0:00:39.9]} 27... Qxd3 {[%clk
0:02:16.9]} 28. h5 {[%clk 0:00:33.8]} 28... Rc6 {[%clk 0:02:13.6]} 29. Re1
{[%clk 0:00:21.2]} 29... Rf5 {[%clk 0:02:13]} 30. Qg2 {[%clk 0:00:21.1]} 30...
Rg5 {[%clk 0:02:13.3]} 31. Qf2 {[%clk 0:00:17.1]} 31... Rg3 {[%clk 0:02:14.5]}
32. Rf1 {[%clk 0:00:16.7]} 32... Qf5 {[%clk 0:02:16.1]} 0-1

[Event "*** Titled Tuesday 3|2 Blitz"]
[Site "Chess.com"]
[Date "2017.03.07"]
[Round "10"]
[White "proxy6"]
[Black "DrVelja"]
[Result "0-1"]
[WhiteElo "2173"]
[BlackElo "2507"]
[TimeControl "180+2"]
[EndTime "15:20:52 PST"]
[Termination "DrVelja won by resignation"]

1. e4 {[%clk 0:03:02]} 1... c5 {[%clk 0:02:58.4]} 2. Nf3 {[%clk 0:03:03.3]} 2...
e6 {[%clk 0:02:59.7]} 3. d4 {[%clk 0:03:04.8]} 3... cxd4 {[%clk 0:03:01]} 4.
Nxd4 {[%clk 0:03:06.7]} 4... Nf6 {[%clk 0:03:00.6]} 5. Nc3 {[%clk 0:03:07.5]}
5... d6 {[%clk 0:03:01.4]} 6. Be3 {[%clk 0:03:06.5]} 6... Be7 {[%clk 0:02:59.1]}
7. g4 {[%clk 0:03:01.3]} 7... h5 {[%clk 0:02:51.1]} 8. g5 {[%clk 0:02:59.9]}
8... Ng4 {[%clk 0:02:51.3]} 9. h4 {[%clk 0:02:54.7]} 9... Nxe3 {[%clk
0:02:49.6]} 10. fxe3 {[%clk 0:02:56.6]} 10... Nc6 {[%clk 0:02:46.1]} 11. Be2
{[%clk 0:02:52.2]} 11... g6 {[%clk 0:02:41.6]} 12. Qd2 {[%clk 0:02:49]} 12... a6
{[%clk 0:02:38.9]} 13. O-O-O {[%clk 0:02:49.9]} 13... Qc7 {[%clk 0:02:30.8]} 14.
Nxc6 {[%clk 0:02:36.6]} 14... bxc6 {[%clk 0:02:30.2]} 15. Rdf1 {[%clk 0:02:31]}
15... d5 {[%clk 0:02:29.7]} 16. exd5 {[%clk 0:02:21.7]} 16... cxd5 {[%clk
0:02:26.9]} 17. Nxd5 {[%clk 0:02:14.4]} 17... exd5 {[%clk 0:02:09.9]} 18. Qxd5
{[%clk 0:02:16.3]} 18... O-O {[%clk 0:02:10.2]} 19. Rxf7 {[%clk 0:01:31.3]}
19... Rxf7 {[%clk 0:02:09.4]} 20. Bc4 {[%clk 0:01:23.8]} 20... Bxg5 {[%clk
0:02:02.3]} 21. hxg5 {[%clk 0:01:19.2]} 21... Bb7 {[%clk 0:01:59.5]} 22. Qxf7+
{[%clk 0:00:57.8]} 22... Qxf7 {[%clk 0:02:01.4]} 23. Bxf7+ {[%clk 0:00:58.9]}
23... Kxf7 {[%clk 0:02:03.3]} 24. Rh4 {[%clk 0:00:57.1]} 24... Re8 {[%clk
0:02:02]} 25. Kd2 {[%clk 0:00:58.1]} 25... Re5 {[%clk 0:02:03.3]} 26. c4 {[%clk
0:00:57.2]} 26... Rxg5 {[%clk 0:02:04.3]} 27. b4 {[%clk 0:00:58.8]} 27... Rg2+
{[%clk 0:01:54.1]} 28. Kd3 {[%clk 0:00:58.3]} 28... Rxa2 {[%clk 0:01:55.2]} 29.
b5 {[%clk 0:00:47.9]} 29... axb5 {[%clk 0:01:54.2]} 30. cxb5 {[%clk 0:00:49.8]}
30... Bf3 {[%clk 0:01:53.2]} 31. Rb4 {[%clk 0:00:46.3]} 31... g5 {[%clk
0:01:54.3]} 32. b6 {[%clk 0:00:47.3]} 32... Ra8 {[%clk 0:01:34.5]} 33. e4 {[%clk
0:00:45.9]} 33... h4 {[%clk 0:01:33.8]} 34. b7 {[%clk 0:00:38.1]} 34... Rb8
{[%clk 0:01:33.2]} 35. Kd4 {[%clk 0:00:39]} 35... h3 {[%clk 0:01:32.5]} 36. Rb2
{[%clk 0:00:37.7]} 36... Bg2 {[%clk 0:01:31.6]} 0-1

[Event "*** Titled Tuesday 3|2 Blitz"]
[Site "Chess.com"]
[Date "2017.03.07"]
[Round "10"]
[White "poummba"]
[Black "jcgs1030"]
[Result "1-0"]
[WhiteElo "2358"]
[BlackElo "2277"]
[TimeControl "180+2"]
[EndTime "15:20:55 PST"]
[Termination "poummba won by resignation"]

1. e4 {[%clk 0:03:02]} 1... c5 {[%clk 0:02:57.4]} 2. Na3 {[%clk 0:03:03.3]} 2...
Nc6 {[%clk 0:02:57.4]} 3. Bb5 {[%clk 0:03:04.3]} 3... Nd4 {[%clk 0:02:57.9]} 4.
Ba4 {[%clk 0:03:05.7]} 4... Nf6 {[%clk 0:02:57.3]} 5. c3 {[%clk 0:03:06.9]} 5...
Ne6 {[%clk 0:02:57.3]} 6. e5 {[%clk 0:03:05.1]} 6... Nd5 {[%clk 0:02:58.3]} 7.
Nf3 {[%clk 0:03:04.5]} 7... g6 {[%clk 0:02:58.6]} 8. d4 {[%clk 0:03:01.5]} 8...
cxd4 {[%clk 0:02:56.6]} 9. O-O {[%clk 0:03:00.1]} 9... Bg7 {[%clk 0:02:56.2]}
10. Bb3 {[%clk 0:02:57.5]} 10... Nec7 {[%clk 0:02:55.2]} 11. Qxd4 {[%clk
0:02:56.5]} 11... d6 {[%clk 0:02:53.1]} 12. Bxd5 {[%clk 0:02:42]} 12... dxe5
{[%clk 0:02:54.1]} 13. Bxf7+ {[%clk 0:02:37.1]} 13... Kxf7 {[%clk 0:02:56]} 14.
Nxe5+ {[%clk 0:02:32.4]} 14... Bxe5 {[%clk 0:02:57.9]} 15. Qxe5 {[%clk
0:02:33.5]} 15... Re8 {[%clk 0:02:43.1]} 16. Bg5 {[%clk 0:02:29.5]} 16... Qd6
{[%clk 0:02:39.1]} 17. Rfe1 {[%clk 0:02:22.4]} 17... Qxe5 {[%clk 0:02:37.8]} 18.
Rxe5 {[%clk 0:02:24.3]} 18... Be6 {[%clk 0:02:34.6]} 19. Rae1 {[%clk 0:02:20.2]}
19... Rad8 {[%clk 0:02:33.6]} 20. Nc2 {[%clk 0:02:12.6]} 20... Rd5 {[%clk
0:02:32.6]} 21. Nd4 {[%clk 0:02:10.1]} 21... Rxe5 {[%clk 0:02:32.4]} 22. Rxe5
{[%clk 0:02:12]} 22... Bxa2 {[%clk 0:02:31.1]} 23. Ra5 {[%clk 0:02:09.5]} 23...
Bd5 {[%clk 0:02:31.8]} 24. Rxa7 {[%clk 0:02:08.3]} 24... e5 {[%clk 0:02:32.6]}
25. Nc2 {[%clk 0:02:04.1]} 25... Ne6 {[%clk 0:02:29.6]} 26. Nb4 {[%clk
0:02:00.1]} 26... Bxg2 {[%clk 0:02:20.6]} 27. Kxg2 {[%clk 0:01:58.4]} 27... Nxg5
{[%clk 0:02:21.1]} 28. Rxb7+ {[%clk 0:02:00]} 28... Kf6 {[%clk 0:02:20.6]} 29.
h4 {[%clk 0:01:43.1]} 29... Ne6 {[%clk 0:02:06.8]} 30. Nd5+ {[%clk 0:01:42.6]}
30... Kf5 {[%clk 0:02:02.3]} 31. Rxh7 {[%clk 0:01:40.8]} 31... Rf8 {[%clk
0:01:57.7]} 32. Re7 {[%clk 0:01:16.2]} 32... Rh8 {[%clk 0:01:50.7]} 33. Kg3
{[%clk 0:01:10.3]} 33... Nc5 {[%clk 0:01:09.5]} 34. f3 {[%clk 0:01:03.7]} 34...
e4 {[%clk 0:00:45.4]} 35. b4 {[%clk 0:00:59.2]} 1-0